[Event "Titled Tuesday Blitz January 17 Early 2023"]
[White "Gatterer, Florian"]
[Black "Oganian, Miran"]
[WhiteFideId "811688"]
[BlackFideId "4122488"]
[WhiteElo "2170"]
[BlackElo "2439"]
[Result "1-0"]
[Round "01"]
[TimeControl "180+2"]
[Date "2023.01.17"]
[WhiteClock "0:00:14"]
[BlackClock "0:00:54"]

1. c4 {[%clk 0:03:00]}  e6 {[%clk 0:02:59]} 2. Nf3 {[%clk 0:02:57]}  d5 {[%clk 0:03:00]} 3. e3 {[%clk 0:02:57]}  a6 {[%clk 0:03:00]} 4. Nc3 {[%clk 0:02:58]}  Nf6 {[%clk 0:02:59]} 5. d4 {[%clk 0:02:57]}  dxc4 {[%clk 0:02:54]} 6. Bxc4 {[%clk 0:02:56]}  b5 {[%clk 0:02:55]} 7. Be2 {[%clk 0:02:56]}  Bb7 {[%clk 0:02:55]} 8. O-O {[%clk 0:02:56]}  Nbd7 {[%clk 0:02:54]} 9. a4 {[%clk 0:02:52]}  b4 {[%clk 0:02:54]} 10. Nb1 {[%clk 0:02:51]}  Bd6 {[%clk 0:02:54]} 11. Nbd2 {[%clk 0:02:49]}  O-O {[%clk 0:02:54]} 12. Nc4 {[%clk 0:02:49]}  Qe7 {[%clk 0:02:54]} 13. b3 {[%clk 0:02:40]}  Rfd8 {[%clk 0:02:53]} 14. Bb2 {[%clk 0:02:40]}  c5 {[%clk 0:02:51]} 15. Nxd6 {[%clk 0:02:39]}  Qxd6 {[%clk 0:02:51]} 16. dxc5 {[%clk 0:02:38]}  Nxc5 {[%clk 0:02:49]} 17. Bc4 {[%clk 0:02:25]}  Bd5 {[%clk 0:02:43]} 18. Qe2 {[%clk 0:02:17]}  Bxc4 {[%clk 0:02:42]} 19. Qxc4 {[%clk 0:02:16]}  Qd5 {[%clk 0:02:35]} 20. Qxb4 {[%clk 0:02:04]}  Nd3 {[%clk 0:02:35]} 21. Qa3 {[%clk 0:01:48]}  Nxb2 {[%clk 0:02:27]} 22. Qxb2 {[%clk 0:01:48]}  Rab8 {[%clk 0:02:28]} 23. Rab1 {[%clk 0:01:44]}  h6 {[%clk 0:02:27]} 24. h3 {[%clk 0:01:43]}  Ne4 {[%clk 0:02:27]} 25. Rfc1 {[%clk 0:01:23]}  a5 {[%clk 0:02:25]} 26. Qd4 {[%clk 0:01:09]}  Qf5 {[%clk 0:02:22]} 27. Qe5 {[%clk 0:01:04]}  Qxe5 {[%clk 0:02:20]} 28. Nxe5 {[%clk 0:01:04]}  Nd2 {[%clk 0:02:21]} 29. Nc6 {[%clk 0:00:58]}  Nxb1 {[%clk 0:02:18]} 30. Nxd8 {[%clk 0:00:52]}  Nd2 {[%clk 0:02:12]} 31. Nc6 {[%clk 0:00:40]}  Rxb3 {[%clk 0:02:09]} 32. Nxa5 {[%clk 0:00:37]}  Ra3 {[%clk 0:02:09]} 33. Nc4 {[%clk 0:00:36]}  Nxc4 {[%clk 0:02:07]} 34. Rxc4 {[%clk 0:00:36]}  Ra2 {[%clk 0:02:07]} 35. g3 {[%clk 0:00:35]}  f5 {[%clk 0:02:06]} 36. Kg2 {[%clk 0:00:35]}  Kf7 {[%clk 0:02:07]} 37. Rc7+ {[%clk 0:00:35]}  Kf6 {[%clk 0:02:07]} 38. Rc4 {[%clk 0:00:35]}  g5 {[%clk 0:02:07]} 39. h4 {[%clk 0:00:34]}  g4 {[%clk 0:02:07]} 40. Rb4 {[%clk 0:00:34]}  Ke5 {[%clk 0:02:05]} 41. Rc4 {[%clk 0:00:34]}  Kd5 {[%clk 0:02:05]} 42. Rb4 {[%clk 0:00:33]}  Kc5 {[%clk 0:02:05]} 43. Rd4 {[%clk 0:00:33]}  e5 {[%clk 0:02:05]} 44. Rd7 {[%clk 0:00:29]}  Rxa4 {[%clk 0:02:05]} 45. Rf7 {[%clk 0:00:29]}  Kd5 {[%clk 0:01:42]} 46. Rxf5 {[%clk 0:00:28]}  Ra6 {[%clk 0:01:42]} 47. Rf7 {[%clk 0:00:25]}  Ke4 {[%clk 0:01:42]} 48. Rb7 {[%clk 0:00:25]}  Kd3 {[%clk 0:01:42]} 49. Rb4 {[%clk 0:00:25]}  h5 {[%clk 0:01:41]} 50. Rb5 {[%clk 0:00:24]}  Re6 {[%clk 0:01:40]} 51. Rb7 {[%clk 0:00:23]}  Ke2 {[%clk 0:01:40]} 52. Rb2+ {[%clk 0:00:23]}  Ke1 {[%clk 0:01:40]} 53. Rb1+ {[%clk 0:00:23]}  Ke2 {[%clk 0:01:41]} 54. Rb2+ {[%clk 0:00:23]}  Ke1 {[%clk 0:01:41]} 55. Rb1+ {[%clk 0:00:23]}  Kd2 {[%clk 0:01:41]} 56. Rb2+ {[%clk 0:00:23]}  Kc3 {[%clk 0:01:41]} 57. Ra2 {[%clk 0:00:24]}  Kd3 {[%clk 0:01:40]} 58. Ra3+ {[%clk 0:00:24]}  Ke2 {[%clk 0:01:38]} 59. Ra2+ {[%clk 0:00:24]}  Kd3 {[%clk 0:01:38]} 60. Ra3+ {[%clk 0:00:24]}  Kc4 {[%clk 0:01:38]} 61. Ra4+ {[%clk 0:00:25]}  Kb3 {[%clk 0:01:37]} 62. Ra7 {[%clk 0:00:25]}  Kb2 {[%clk 0:01:35]} 63. Rh7 {[%clk 0:00:24]}  Kc2 {[%clk 0:01:31]} 64. Rxh5 {[%clk 0:00:24]}  Kd3 {[%clk 0:01:28]} 65. Rg5 {[%clk 0:00:19]}  Ke2 {[%clk 0:01:27]} 66. Rf5 {[%clk 0:00:19]}  e4 {[%clk 0:01:25]} 67. Rf4 {[%clk 0:00:18]}  Kd3 {[%clk 0:01:17]} 68. Rxg4 {[%clk 0:00:18]}  Rf6 {[%clk 0:01:17]} 69. Rf4 {[%clk 0:00:18]}  Rh6 {[%clk 0:01:18]} 70. Kh3 {[%clk 0:00:17]}  Ke2 {[%clk 0:01:18]} 71. g4 {[%clk 0:00:16]}  Ra6 {[%clk 0:01:17]} 72. h5 {[%clk 0:00:17]}  Ra1 {[%clk 0:01:17]} 73. Kh4 {[%clk 0:00:16]}  Rf1 {[%clk 0:01:17]} 74. h6 {[%clk 0:00:15]}  Rg1 {[%clk 0:01:17]} 75. Kg5 {[%clk 0:00:15]}  Rh1 {[%clk 0:01:16]} 76. Kg6 {[%clk 0:00:15]}  Kf1 {[%clk 0:01:17]} 77. g5 {[%clk 0:00:15]}  Kg2 {[%clk 0:01:18]} 78. Kg7 {[%clk 0:00:15]}  Ra1 {[%clk 0:01:17]} 79. h7 {[%clk 0:00:14]}  Ra6 {[%clk 0:01:16]} 80. g6 {[%clk 0:00:14]}  Kg1 {[%clk 0:01:17]} 81. h8=Q {[%clk 0:00:14]}  Ra7+ {[%clk 0:01:18]} 82. Kh6 {[%clk 0:00:13]}  Ra6 {[%clk 0:01:18]} 83. Rf6 {[%clk 0:00:13]}  Ra5 {[%clk 0:01:17]} 84. Qf8 {[%clk 0:00:13]}  Ra2 {[%clk 0:01:17]} 85. Rf4 {[%clk 0:00:13]}  Ra6 {[%clk 0:01:15]} 86. Qf5 {[%clk 0:00:12]}  Ra8 {[%clk 0:01:14]} 87. Qxe4 {[%clk 0:00:12]}  Ra7 {[%clk 0:01:13]} 88. Kg5 {[%clk 0:00:12]}  Ra5+ {[%clk 0:01:12]} 89. Rf5 {[%clk 0:00:13]}  Ra7 {[%clk 0:01:12]} 90. Qg4+ {[%clk 0:00:13]}  Kf1 {[%clk 0:01:12]} 91. f4 {[%clk 0:00:14]}  Kf2 {[%clk 0:01:11]} 92. e4 {[%clk 0:00:15]}  Ke3 {[%clk 0:01:11]} 93. Rb5 {[%clk 0:00:14]}  Ra6 {[%clk 0:01:10]} 94. Rb3+ {[%clk 0:00:15]}  Kd4 {[%clk 0:01:09]} 95. f5 {[%clk 0:00:16]}  Ra1 {[%clk 0:01:07]} 96. Qg3 {[%clk 0:00:14]}  Rd1 {[%clk 0:01:05]} 97. g7 {[%clk 0:00:14]}  Kc5 {[%clk 0:01:04]} 98. g8=Q {[%clk 0:00:14]}  Rc1 {[%clk 0:00:54]} 99. Qd5# {[%clk 0:00:14]} 1-0


[Site "https://www.chess.com"]

[Event "Titled Tuesday Blitz January 17 Early 2023"]
[White "Milikow, Yoav"]
[Black "Lacasa Diaz, Jose Antonio"]
[WhiteFideId "2822237"]
[BlackFideId "2203375"]
[WhiteElo "2394"]
[BlackElo "2359"]
[Result "1-0"]
[Round "01"]
[TimeControl "180+2"]
[Date "2023.01.17"]
[WhiteClock "0:00:35"]
[BlackClock "0:00:12"]

1. c4 {[%clk 0:02:59]}  e6 {[%clk 0:03:00]} 2. Nc3 {[%clk 0:02:59]}  d5 {[%clk 0:03:00]} 3. d4 {[%clk 0:03:00]}  c5 {[%clk 0:02:59]} 4. cxd5 {[%clk 0:02:59]}  exd5 {[%clk 0:03:00]} 5. Nf3 {[%clk 0:02:58]}  Nc6 {[%clk 0:03:01]} 6. dxc5 {[%clk 0:02:58]}  d4 {[%clk 0:03:00]} 7. Na4 {[%clk 0:02:58]}  Bxc5 {[%clk 0:03:00]} 8. Nxc5 {[%clk 0:02:59]}  Qa5+ {[%clk 0:03:00]} 9. Qd2 {[%clk 0:02:59]}  Qxc5 {[%clk 0:03:00]} 10. e3 {[%clk 0:02:59]}  dxe3 {[%clk 0:02:58]} 11. Qxe3+ {[%clk 0:02:59]}  Qxe3+ {[%clk 0:02:58]} 12. Bxe3 {[%clk 0:03:00]}  Nge7 {[%clk 0:02:58]} 13. Bc4 {[%clk 0:03:00]}  O-O {[%clk 0:02:56]} 14. O-O {[%clk 0:02:59]}  h6 {[%clk 0:02:46]} 15. Rfe1 {[%clk 0:02:57]}  Nf5 {[%clk 0:02:43]} 16. Bc5 {[%clk 0:02:56]}  Rd8 {[%clk 0:02:43]} 17. Ne5 {[%clk 0:02:41]}  Nxe5 {[%clk 0:02:34]} 18. Rxe5 {[%clk 0:02:42]}  Bd7 {[%clk 0:02:11]} 19. Rd1 {[%clk 0:02:30]}  Bc6 {[%clk 0:02:04]} 20. Rde1 {[%clk 0:02:13]}  Nd6 {[%clk 0:02:04]} 21. Bb3 {[%clk 0:02:08]}  b6 {[%clk 0:02:03]} 22. Ba3 {[%clk 0:01:58]}  Nb5 {[%clk 0:02:01]} 23. Be7 {[%clk 0:01:51]}  Re8 {[%clk 0:01:51]} 24. Bc4 {[%clk 0:01:25]}  Nd4 {[%clk 0:01:37]} 25. Bb4 {[%clk 0:01:24]}  Rxe5 {[%clk 0:01:29]} 26. Rxe5 {[%clk 0:01:25]}  Rd8 {[%clk 0:01:22]} 27. Bc3 {[%clk 0:01:17]}  Ne6 {[%clk 0:01:08]} 28. Re1 {[%clk 0:01:12]}  Nf4 {[%clk 0:01:06]} 29. f3 {[%clk 0:01:10]}  h5 {[%clk 0:00:51]} 30. Re7 {[%clk 0:00:58]}  Nd5 {[%clk 0:00:45]} 31. Rxa7 {[%clk 0:00:58]}  Nxc3 {[%clk 0:00:41]} 32. Bxf7+ {[%clk 0:00:56]}  Kh7 {[%clk 0:00:40]} 33. bxc3 {[%clk 0:00:56]}  Rd1+ {[%clk 0:00:39]} 34. Kf2 {[%clk 0:00:56]}  Rd2+ {[%clk 0:00:39]} 35. Kg3 {[%clk 0:00:54]}  h4+ {[%clk 0:00:40]} 36. Kh3 {[%clk 0:00:54]}  Rc2 {[%clk 0:00:29]} 37. Rc7 {[%clk 0:00:44]}  Bb5 {[%clk 0:00:18]} 38. Bd5 {[%clk 0:00:42]}  Kh6 {[%clk 0:00:15]} 39. Rb7 {[%clk 0:00:39]}  Bf1 {[%clk 0:00:14]} 40. Rxb6+ {[%clk 0:00:39]}  g6 {[%clk 0:00:14]} 41. Rxg6+ {[%clk 0:00:37]}  Kxg6 {[%clk 0:00:10]} 42. Be4+ {[%clk 0:00:37]}  Kg5 {[%clk 0:00:11]} 43. Bxc2 {[%clk 0:00:37]}  Bc4 {[%clk 0:00:12]} 44. Bb3 {[%clk 0:00:35]} 1-0


[Site "https://www.chess.com"]

[Event "Titled Tuesday Blitz January 17 Early 2023"]
[White "Seletsky, Grigory"]
[Black "Klukin, Kirill"]
[WhiteFideId "14112191"]
[BlackFideId "24199273"]
[WhiteElo "2259"]
[BlackElo "2390"]
[Result "0-1"]
[Round "01"]
[TimeControl "180+2"]
[Date "2023.01.17"]
[WhiteClock "0:00:01"]
[BlackClock "0:00:13"]

1. e4 {[%clk 0:02:56]}  g6 {[%clk 0:02:59]} 2. h4 {[%clk 0:02:55]}  Bg7 {[%clk 0:02:55]} 3. h5 {[%clk 0:02:55]}  d5 {[%clk 0:02:55]} 4. exd5 {[%clk 0:02:52]}  Qxd5 {[%clk 0:02:52]} 5. Nc3 {[%clk 0:02:52]}  Qa5 {[%clk 0:02:50]} 6. hxg6 {[%clk 0:02:50]}  hxg6 {[%clk 0:02:49]} 7. Rxh8 {[%clk 0:02:50]}  Bxh8 {[%clk 0:02:50]} 8. Bc4 {[%clk 0:02:46]}  c6 {[%clk 0:02:49]} 9. Qf3 {[%clk 0:02:43]}  Nf6 {[%clk 0:02:47]} 10. Nge2 {[%clk 0:02:42]}  Nbd7 {[%clk 0:02:47]} 11. d4 {[%clk 0:02:40]}  Nb6 {[%clk 0:02:46]} 12. Bb3 {[%clk 0:02:39]}  Bg4 {[%clk 0:02:45]} 13. Qg3 {[%clk 0:02:25]}  Bxe2 {[%clk 0:02:24]} 14. Kxe2 {[%clk 0:02:23]}  Qh5+ {[%clk 0:02:06]} 15. Qf3 {[%clk 0:02:11]}  a5 {[%clk 0:01:43]} 16. a4 {[%clk 0:02:05]}  e6 {[%clk 0:01:36]} 17. Qxh5 {[%clk 0:02:03]}  Nxh5 {[%clk 0:01:36]} 18. Be3 {[%clk 0:02:03]}  O-O-O {[%clk 0:01:36]} 19. Rh1 {[%clk 0:01:59]}  Bxd4 {[%clk 0:01:32]} 20. g4 {[%clk 0:01:50]}  Nf6 {[%clk 0:01:10]} 21. Bg5 {[%clk 0:01:38]}  Re8 {[%clk 0:01:01]} 22. f3 {[%clk 0:01:34]}  Nfd5 {[%clk 0:01:01]} 23. Ne4 {[%clk 0:01:31]}  Bxb2 {[%clk 0:00:58]} 24. Nd6+ {[%clk 0:01:29]}  Kd7 {[%clk 0:00:58]} 25. Nxe8 {[%clk 0:01:28]}  Kxe8 {[%clk 0:00:59]} 26. Bxd5 {[%clk 0:01:20]}  cxd5 {[%clk 0:00:57]} 27. Bd2 {[%clk 0:01:01]}  Nc4 {[%clk 0:00:56]} 28. c3 {[%clk 0:00:59]}  Ba3 {[%clk 0:00:48]} 29. Rb1 {[%clk 0:00:53]}  b6 {[%clk 0:00:44]} 30. Bc1 {[%clk 0:00:52]}  Bc5 {[%clk 0:00:41]} 31. Ra1 {[%clk 0:00:49]}  Kd7 {[%clk 0:00:40]} 32. Ra2 {[%clk 0:00:49]}  e5 {[%clk 0:00:40]} 33. Kd3 {[%clk 0:00:48]}  Ke6 {[%clk 0:00:41]} 34. Rh2 {[%clk 0:00:45]}  Nd6 {[%clk 0:00:37]} 35. Be3 {[%clk 0:00:41]}  e4+ {[%clk 0:00:22]} 36. fxe4 {[%clk 0:00:37]}  dxe4+ {[%clk 0:00:23]} 37. Ke2 {[%clk 0:00:37]}  f5 {[%clk 0:00:20]} 38. gxf5+ {[%clk 0:00:36]}  gxf5 {[%clk 0:00:20]} 39. Bf4 {[%clk 0:00:27]}  Nc4 {[%clk 0:00:12]} 40. Rh6+ {[%clk 0:00:26]}  Kf7 {[%clk 0:00:12]} 41. Bg5 {[%clk 0:00:20]}  Kg7 {[%clk 0:00:12]} 42. Rf6 {[%clk 0:00:16]}  Nd6 {[%clk 0:00:13]} 43. Rh6 {[%clk 0:00:10]}  Nf7 {[%clk 0:00:12]} 44. Rf6 {[%clk 0:00:10]}  Nxg5 {[%clk 0:00:12]} 45. Rxf5 {[%clk 0:00:01]}  Nf7 {[%clk 0:00:13]} 0-1


[Site "https://www.chess.com"]

[Event "Titled Tuesday Blitz January 17 Early 2023"]
[White "Papayan, Oleg"]
[Black "Krysa, Leandro"]
[WhiteFideId "4193911"]
[BlackFideId "116807"]
[WhiteElo "2253"]
[BlackElo "2541"]
[Result "1/2-1/2"]
[Round "01"]
[TimeControl "180+2"]
[Date "2023.01.17"]
[WhiteClock "0:00:07"]
[BlackClock "0:00:09"]

1. e4 {[%clk 0:02:58]}  e5 {[%clk 0:02:59]} 2. Nf3 {[%clk 0:02:58]}  Nf6 {[%clk 0:03:00]} 3. Nxe5 {[%clk 0:02:56]}  d6 {[%clk 0:03:00]} 4. Nc4 {[%clk 0:02:57]}  Nxe4 {[%clk 0:02:58]} 5. Nc3 {[%clk 0:02:57]}  Nxc3 {[%clk 0:02:56]} 6. bxc3 {[%clk 0:02:58]}  Be7 {[%clk 0:02:49]} 7. d4 {[%clk 0:02:58]}  O-O {[%clk 0:02:47]} 8. Bd3 {[%clk 0:02:57]}  Re8 {[%clk 0:02:43]} 9. O-O {[%clk 0:02:54]}  Nd7 {[%clk 0:02:43]} 10. Ne3 {[%clk 0:02:48]}  Nf6 {[%clk 0:02:42]} 11. Nf5 {[%clk 0:02:43]}  Bxf5 {[%clk 0:02:34]} 12. Bxf5 {[%clk 0:02:44]}  d5 {[%clk 0:02:31]} 13. Rb1 {[%clk 0:02:41]}  Rb8 {[%clk 0:02:27]} 14. Qf3 {[%clk 0:02:41]}  h6 {[%clk 0:02:24]} 15. Bf4 {[%clk 0:02:35]}  Bd6 {[%clk 0:02:22]} 16. Be3 {[%clk 0:02:34]}  c6 {[%clk 0:02:14]} 17. h3 {[%clk 0:02:30]}  Ne4 {[%clk 0:02:08]} 18. Rb3 {[%clk 0:02:28]}  b5 {[%clk 0:02:02]} 19. Ra1 {[%clk 0:02:16]}  Qa5 {[%clk 0:01:47]} 20. Bxe4 {[%clk 0:02:14]}  Rxe4 {[%clk 0:01:45]} 21. Qf5 {[%clk 0:02:14]}  Re6 {[%clk 0:01:37]} 22. Qd3 {[%clk 0:01:45]}  Qa4 {[%clk 0:01:34]} 23. Qf5 {[%clk 0:01:22]}  Rbe8 {[%clk 0:01:30]} 24. Qg4 {[%clk 0:01:22]}  R8e7 {[%clk 0:01:19]} 25. Qf5 {[%clk 0:01:22]}  g6 {[%clk 0:01:16]} 26. Qf3 {[%clk 0:01:18]}  h5 {[%clk 0:01:14]} 27. g4 {[%clk 0:01:18]}  h4 {[%clk 0:00:54]} 28. Kg2 {[%clk 0:01:14]}  f6 {[%clk 0:00:48]} 29. Qd1 {[%clk 0:01:02]}  Kg7 {[%clk 0:00:45]} 30. Qd2 {[%clk 0:01:00]}  Re4 {[%clk 0:00:43]} 31. Rbb1 {[%clk 0:01:00]}  g5 {[%clk 0:00:38]} 32. Re1 {[%clk 0:00:57]}  Kg6 {[%clk 0:00:30]} 33. Qd3 {[%clk 0:00:55]}  Qc4 {[%clk 0:00:29]} 34. Kf3 {[%clk 0:00:55]}  Kg7 {[%clk 0:00:25]} 35. a4 {[%clk 0:00:53]}  a6 {[%clk 0:00:21]} 36. axb5 {[%clk 0:00:53]}  axb5 {[%clk 0:00:21]} 37. Ra6 {[%clk 0:00:53]}  Rc7 {[%clk 0:00:12]} 38. Rea1 {[%clk 0:00:50]}  Bf4 {[%clk 0:00:09]} 39. Qxc4 {[%clk 0:00:48]}  bxc4 {[%clk 0:00:08]} 40. Ra7 {[%clk 0:00:48]}  Rxa7 {[%clk 0:00:05]} 41. Rxa7+ {[%clk 0:00:48]}  Kg6 {[%clk 0:00:05]} 42. Ra5 {[%clk 0:00:49]}  Bxe3 {[%clk 0:00:04]} 43. fxe3 {[%clk 0:00:49]}  Re6 {[%clk 0:00:05]} 44. Ra7 {[%clk 0:00:41]}  f5 {[%clk 0:00:05]} 45. gxf5+ {[%clk 0:00:42]}  Kxf5 {[%clk 0:00:06]} 46. Rf7+ {[%clk 0:00:42]}  Kg6 {[%clk 0:00:06]} 47. Rc7 {[%clk 0:00:43]}  Rf6+ {[%clk 0:00:06]} 48. Kg2 {[%clk 0:00:39]}  Kf5 {[%clk 0:00:05]} 49. Kf3 {[%clk 0:00:37]}  Ke6+ {[%clk 0:00:04]} 50. Ke2 {[%clk 0:00:30]}  Kf5 {[%clk 0:00:04]} 51. Re7 {[%clk 0:00:30]}  g4 {[%clk 0:00:03]} 52. Re5+ {[%clk 0:00:30]}  Kg6 {[%clk 0:00:04]} 53. hxg4 {[%clk 0:00:31]}  Rf7 {[%clk 0:00:03]} 54. Rh5 {[%clk 0:00:31]}  Rh7 {[%clk 0:00:04]} 55. Rxh7 {[%clk 0:00:13]}  Kxh7 {[%clk 0:00:04]} 56. Kf3 {[%clk 0:00:12]}  Kg6 {[%clk 0:00:03]} 57. Kf4 {[%clk 0:00:04]}  Kf6 {[%clk 0:00:03]} 58. g5+ {[%clk 0:00:04]}  Kg6 {[%clk 0:00:04]} 59. Kg4 {[%clk 0:00:05]}  h3 {[%clk 0:00:05]} 60. Kxh3 {[%clk 0:00:06]}  Kxg5 {[%clk 0:00:06]} 61. Kg3 {[%clk 0:00:06]}  Kf5 {[%clk 0:00:06]} 62. Kf3 {[%clk 0:00:07]}  Kf6 {[%clk 0:00:06]} 63. e4 {[%clk 0:00:08]}  dxe4+ {[%clk 0:00:06]} 64. Kxe4 {[%clk 0:00:09]}  Ke6 {[%clk 0:00:07]} 65. Kf4 {[%clk 0:00:08]}  Kf6 {[%clk 0:00:07]} 66. Kg4 {[%clk 0:00:08]}  Kg6 {[%clk 0:00:07]} 67. Kf4 {[%clk 0:00:07]}  Kf6 {[%clk 0:00:08]} 68. Ke4 {[%clk 0:00:08]}  Ke6 {[%clk 0:00:08]} 69. Kf4 {[%clk 0:00:07]}  Kf6 {[%clk 0:00:09]} 1/2-1/2


[Site "https://www.chess.com"]

[Event "Titled Tuesday Blitz January 17 Early 2023"]
[White "Domingo Nunez, Ruben"]
[Black "Tarasova, Viktoriya"]
[WhiteFideId "22245570"]
[BlackFideId "4175840"]
[WhiteElo "2416"]
[BlackElo "2226"]
[Result "1-0"]
[Round "01"]
[TimeControl "180+2"]
[Date "2023.01.17"]
[WhiteClock "0:00:37"]
[BlackClock "0:00:15"]

1. b3 {[%clk 0:02:58]}  Nf6 {[%clk 0:02:59]} 2. Bb2 {[%clk 0:02:57]}  e6 {[%clk 0:02:58]} 3. Nf3 {[%clk 0:02:58]}  d5 {[%clk 0:02:58]} 4. e3 {[%clk 0:02:58]}  Bd6 {[%clk 0:02:58]} 5. Be2 {[%clk 0:02:59]}  O-O {[%clk 0:02:57]} 6. O-O {[%clk 0:02:59]}  c5 {[%clk 0:02:57]} 7. c4 {[%clk 0:02:59]}  Nc6 {[%clk 0:02:57]} 8. h3 {[%clk 0:02:55]}  b6 {[%clk 0:02:57]} 9. cxd5 {[%clk 0:02:51]}  exd5 {[%clk 0:02:49]} 10. d4 {[%clk 0:02:51]}  Bb7 {[%clk 0:02:41]} 11. dxc5 {[%clk 0:02:43]}  bxc5 {[%clk 0:02:35]} 12. Nc3 {[%clk 0:02:42]}  Be7 {[%clk 0:02:02]} 13. Rc1 {[%clk 0:02:40]}  Rc8 {[%clk 0:02:00]} 14. Na4 {[%clk 0:02:23]}  Ne4 {[%clk 0:01:56]} 15. Bd3 {[%clk 0:02:19]}  Nb4 {[%clk 0:01:52]} 16. Bb1 {[%clk 0:02:14]}  Bf6 {[%clk 0:01:24]} 17. Bxf6 {[%clk 0:01:57]}  Qxf6 {[%clk 0:01:23]} 18. a3 {[%clk 0:01:58]}  Na6 {[%clk 0:01:22]} 19. Qe2 {[%clk 0:01:47]}  Rfd8 {[%clk 0:01:19]} 20. Rfd1 {[%clk 0:01:47]}  Ng5 {[%clk 0:01:17]} 21. Nxg5 {[%clk 0:01:37]}  Qxg5 {[%clk 0:01:17]} 22. Qb5 {[%clk 0:01:38]}  Qe7 {[%clk 0:01:12]} 23. Bd3 {[%clk 0:01:08]}  Rc7 {[%clk 0:00:56]} 24. Qa5 {[%clk 0:01:06]}  c4 {[%clk 0:00:56]} 25. bxc4 {[%clk 0:00:54]}  dxc4 {[%clk 0:00:55]} 26. Bxc4 {[%clk 0:00:52]}  Rdc8 {[%clk 0:00:37]} 27. Rb1 {[%clk 0:00:39]}  Rxc4 {[%clk 0:00:33]} 28. Rxb7 {[%clk 0:00:40]}  Qf8 {[%clk 0:00:20]} 29. Qxa6 {[%clk 0:00:38]}  Rc1 {[%clk 0:00:18]} 30. Rd7 {[%clk 0:00:36]}  Rxd1+ {[%clk 0:00:15]} 31. Rxd1 {[%clk 0:00:37]} 1-0


[Site "https://www.chess.com"]

[Event "Titled Tuesday Blitz January 17 Early 2023"]
[White "Tan, Zhongyi"]
[Black "Jiang, Andrew"]
[WhiteFideId "8603642"]
[BlackFideId "30953510"]
[WhiteElo "2517"]
[BlackElo "2201"]
[Result "0-1"]
[Round "01"]
[TimeControl "180+2"]
[Date "2023.01.17"]
[WhiteClock "0:00:07"]
[BlackClock "0:01:09"]

1. d4 {[%clk 0:02:59]}  d5 {[%clk 0:02:59]} 2. Bf4 {[%clk 0:02:58]}  Nf6 {[%clk 0:02:55]} 3. e3 {[%clk 0:02:58]}  e6 {[%clk 0:02:53]} 4. Nf3 {[%clk 0:02:54]}  c5 {[%clk 0:02:53]} 5. Nbd2 {[%clk 0:02:52]}  Qb6 {[%clk 0:02:42]} 6. dxc5 {[%clk 0:02:33]}  Bxc5 {[%clk 0:02:40]} 7. Nb3 {[%clk 0:02:31]}  Bd6 {[%clk 0:02:33]} 8. Bxd6 {[%clk 0:02:26]}  Qxd6 {[%clk 0:02:33]} 9. Be2 {[%clk 0:02:19]}  O-O {[%clk 0:02:32]} 10. O-O {[%clk 0:02:18]}  b6 {[%clk 0:02:31]} 11. c4 {[%clk 0:02:18]}  Bb7 {[%clk 0:02:31]} 12. Rc1 {[%clk 0:02:17]}  Nbd7 {[%clk 0:02:30]} 13. Nbd4 {[%clk 0:02:12]}  Rfc8 {[%clk 0:02:24]} 14. Nb5 {[%clk 0:02:05]}  Qe7 {[%clk 0:02:17]} 15. cxd5 {[%clk 0:02:02]}  Nxd5 {[%clk 0:02:11]} 16. Rxc8+ {[%clk 0:02:01]}  Bxc8 {[%clk 0:02:04]} 17. Bc4 {[%clk 0:01:55]}  N7f6 {[%clk 0:01:51]} 18. e4 {[%clk 0:01:51]}  Nxe4 {[%clk 0:01:48]} 19. Re1 {[%clk 0:01:40]}  Ndf6 {[%clk 0:01:40]} 20. Ne5 {[%clk 0:00:54]}  Bb7 {[%clk 0:01:30]} 21. Nd4 {[%clk 0:00:53]}  Qc5 {[%clk 0:01:18]} 22. Nxf7 {[%clk 0:00:13]}  Qxc4 {[%clk 0:01:13]} 23. Ne5 {[%clk 0:00:12]}  Qd5 {[%clk 0:01:13]} 24. Nef3 {[%clk 0:00:09]}  Rd8 {[%clk 0:01:11]} 25. Qe2 {[%clk 0:00:08]}  e5 {[%clk 0:01:10]} 26. Nb3 {[%clk 0:00:07]}  a5 {[%clk 0:01:09]} 0-1


[Site "https://www.chess.com"]

[Event "Titled Tuesday Blitz January 17 Early 2023"]
[White "Srihari L R"]
[Black "Miszler, Levente"]
[WhiteFideId "46617116"]
[BlackFideId "763276"]
[WhiteElo "2416"]
[BlackElo "2271"]
[Result "1-0"]
[Round "01"]
[TimeControl "180+2"]
[Date "2023.01.17"]
[WhiteClock "0:00:20"]
[BlackClock "0:00:03"]

1. b3 {[%clk 0:02:50]}  c5 {[%clk 0:02:54]} 2. Bb2 {[%clk 0:02:47]}  Nc6 {[%clk 0:02:54]} 3. Nf3 {[%clk 0:02:43]}  d5 {[%clk 0:02:52]} 4. e3 {[%clk 0:02:42]}  Bg4 {[%clk 0:02:51]} 5. h3 {[%clk 0:02:40]}  Bh5 {[%clk 0:02:51]} 6. Be2 {[%clk 0:02:33]}  Nf6 {[%clk 0:02:49]} 7. O-O {[%clk 0:02:33]}  e6 {[%clk 0:02:48]} 8. d4 {[%clk 0:02:33]}  Bd6 {[%clk 0:02:47]} 9. Nbd2 {[%clk 0:02:31]}  O-O {[%clk 0:02:47]} 10. c4 {[%clk 0:02:31]}  cxd4 {[%clk 0:02:45]} 11. Nxd4 {[%clk 0:02:31]}  Bxe2 {[%clk 0:02:42]} 12. Qxe2 {[%clk 0:02:32]}  Nxd4 {[%clk 0:02:22]} 13. Bxd4 {[%clk 0:02:33]}  e5 {[%clk 0:02:16]} 14. Bb2 {[%clk 0:02:32]}  Bb4 {[%clk 0:02:06]} 15. Bxe5 {[%clk 0:02:23]}  Bxd2 {[%clk 0:02:01]} 16. Qxd2 {[%clk 0:02:21]}  Ne4 {[%clk 0:01:59]} 17. Qd4 {[%clk 0:02:14]}  f6 {[%clk 0:01:56]} 18. Bh2 {[%clk 0:02:10]}  Re8 {[%clk 0:01:41]} 19. Rfd1 {[%clk 0:02:03]}  Qe7 {[%clk 0:01:25]} 20. Qxd5+ {[%clk 0:01:51]}  Kh8 {[%clk 0:01:25]} 21. Qd7 {[%clk 0:01:51]}  Qb4 {[%clk 0:01:17]} 22. Qd3 {[%clk 0:01:40]}  a5 {[%clk 0:01:13]} 23. a3 {[%clk 0:01:34]}  Qc5 {[%clk 0:01:11]} 24. Bd6 {[%clk 0:01:29]}  Qh5 {[%clk 0:01:04]} 25. Bf4 {[%clk 0:01:18]}  Qh4 {[%clk 0:00:52]} 26. Qc2 {[%clk 0:01:09]}  Rad8 {[%clk 0:00:51]} 27. Bc7 {[%clk 0:01:07]}  Rxd1+ {[%clk 0:00:49]} 28. Rxd1 {[%clk 0:01:07]}  a4 {[%clk 0:00:31]} 29. b4 {[%clk 0:01:00]}  Qh5 {[%clk 0:00:21]} 30. Rd4 {[%clk 0:00:54]}  Qf5 {[%clk 0:00:19]} 31. f3 {[%clk 0:00:33]}  Ng3 {[%clk 0:00:19]} 32. Qd1 {[%clk 0:00:29]}  Qg6 {[%clk 0:00:10]} 33. Rg4 {[%clk 0:00:24]}  Qf7 {[%clk 0:00:05]} 34. Bxg3 {[%clk 0:00:23]}  Rxe3 {[%clk 0:00:05]} 35. Rd4 {[%clk 0:00:22]}  Re8 {[%clk 0:00:04]} 36. Rd8 {[%clk 0:00:21]}  h6 {[%clk 0:00:04]} 37. Rxe8+ {[%clk 0:00:21]}  Qxe8 {[%clk 0:00:05]} 38. Bf2 {[%clk 0:00:21]}  Qe6 {[%clk 0:00:04]} 39. Qd8+ {[%clk 0:00:20]}  Kh7 {[%clk 0:00:04]} 40. Qd5 {[%clk 0:00:20]}  Qe2 {[%clk 0:00:03]} 41. Qe4+ {[%clk 0:00:20]} 1-0


[Site "https://www.chess.com"]